[Event "*** MasterClass Titled Tuesday Blitz"]
[Site "Chess.com"]
[Date "2017.10.03"]
[Round "6"]
[White "dzhumagaliev"]
[Black "maciek_92"]
[Result "0-1"]
[WhiteElo "2587"]
[BlackElo "2539"]
[TimeControl "180+2"]
[EndTime "14:26:45 PDT"]
[Termination "maciek_92 won by checkmate"]

1. h4 {[%clk 0:02:58.5]} 1... Nf6 {[%clk 0:03:00.1]} 2. h5 {[%clk 0:02:59.6]}
2... e5 {[%clk 0:02:55.9]} 3. c3 {[%clk 0:02:59.4]} 3... c5 {[%clk 0:02:53.9]}
4. d3 {[%clk 0:02:56.4]} 4... h6 {[%clk 0:02:51.6]} 5. Nf3 {[%clk 0:02:54.8]}
5... Nc6 {[%clk 0:02:52.7]} 6. c4 {[%clk 0:02:51.9]} 6... d6 {[%clk 0:02:39.1]}
7. Nc3 {[%clk 0:02:46.4]} 7... Bg4 {[%clk 0:02:39.6]} 8. Qb3 {[%clk 0:02:46.5]}
8... Rb8 {[%clk 0:02:39]} 9. Nd5 {[%clk 0:02:45.6]} 9... Nxh5 {[%clk 0:02:32.1]}
10. Nd2 {[%clk 0:02:29.8]} 10... Nf6 {[%clk 0:02:29.2]} 11. Nxf6+ {[%clk
0:02:30.1]} 11... Qxf6 {[%clk 0:02:30.2]} 12. Ne4 {[%clk 0:02:32]} 12... Qd8
{[%clk 0:02:31.6]} 13. e3 {[%clk 0:02:31.8]} 13... Be6 {[%clk 0:02:30]} 14. Nc3
{[%clk 0:02:32.5]} 14... a6 {[%clk 0:02:29]} 15. Qa4 {[%clk 0:02:23]} 15... Qd7
{[%clk 0:02:27.7]} 16. g3 {[%clk 0:02:20]} 16... Nb4 {[%clk 0:02:12.9]} 17. Qd1
{[%clk 0:02:18.2]} 17... b5 {[%clk 0:02:13.4]} 18. a3 {[%clk 0:02:16.1]} 18...
Nc6 {[%clk 0:02:14.6]} 19. b3 {[%clk 0:02:11.6]} 19... g6 {[%clk 0:02:10.5]} 20.
Bg2 {[%clk 0:02:07.9]} 20... Bg7 {[%clk 0:02:11.3]} 21. Bd2 {[%clk 0:02:02.3]}
21... Ne7 {[%clk 0:02:10.2]} 22. e4 {[%clk 0:02:00.6]} 22... Nc6 {[%clk
0:02:07.8]} 23. Nd5 {[%clk 0:01:40.1]} 23... Nd4 {[%clk 0:01:58.8]} 24. Rb1
{[%clk 0:01:21.9]} 24... h5 {[%clk 0:01:57.8]} 25. Be3 {[%clk 0:01:15.1]} 25...
bxc4 {[%clk 0:01:54.1]} 26. Bxd4 {[%clk 0:01:11.8]} 26... Bxd5 {[%clk
0:01:49.9]} 27. exd5 {[%clk 0:01:02]} 27... cxd4 {[%clk 0:01:44.9]} 28. bxc4
{[%clk 0:01:02.2]} 28... O-O {[%clk 0:01:44]} 29. O-O {[%clk 0:01:01.9]} 29...
Rxb1 {[%clk 0:01:25]} 30. Qxb1 {[%clk 0:01:01.9]} 30... Qc7 {[%clk 0:01:26.5]}
31. Qc2 {[%clk 0:00:53.6]} 31... Rb8 {[%clk 0:01:25.8]} 32. Rb1 {[%clk
0:00:55.1]} 32... Rxb1+ {[%clk 0:01:22.9]} 33. Qxb1 {[%clk 0:00:57]} 33... Bh6
{[%clk 0:01:17.8]} 34. Qb4 {[%clk 0:00:52.9]} 34... Kg7 {[%clk 0:00:56.5]} 35.
Bf3 {[%clk 0:00:49.8]} 35... f5 {[%clk 0:00:55.8]} 36. Kg2 {[%clk 0:00:39.5]}
36... Bg5 {[%clk 0:00:48.9]} 37. a4 {[%clk 0:00:35.9]} 37... Bd8 {[%clk
0:00:38.8]} 38. Kg1 {[%clk 0:00:28.9]} 38... Qb6 {[%clk 0:00:35.8]} 39. Qa3
{[%clk 0:00:23.8]} 39... Bc7 {[%clk 0:00:30.8]} 40. Kg2 {[%clk 0:00:22.8]} 40...
a5 {[%clk 0:00:31.1]} 41. Qc1 {[%clk 0:00:20.6]} 41... Bd8 {[%clk 0:00:31.8]}
42. Qa3 {[%clk 0:00:21.3]} 42... Qb4 {[%clk 0:00:25.4]} 43. Qxb4 {[%clk
0:00:22]} 43... axb4 {[%clk 0:00:26.2]} 44. Bd1 {[%clk 0:00:23.9]} 44... Ba5
{[%clk 0:00:23.2]} 45. Bc2 {[%clk 0:00:24.6]} 45... Kf6 {[%clk 0:00:23.4]} 46.
Kh3 {[%clk 0:00:25.1]} 46... g5 {[%clk 0:00:23.8]} 47. f3 {[%clk 0:00:25.2]}
47... g4+ {[%clk 0:00:21.1]} 48. Kg2 {[%clk 0:00:24.7]} 48... Ke7 {[%clk
0:00:17.5]} 49. Bb3 {[%clk 0:00:21.3]} 49... Kd7 {[%clk 0:00:18.4]} 50. Bc2
{[%clk 0:00:22.6]} 50... Kc7 {[%clk 0:00:19.5]} 51. Bb3 {[%clk 0:00:24.2]} 51...
Kb6 {[%clk 0:00:20.6]} 52. Kf2 {[%clk 0:00:25.5]} 52... Ka6 {[%clk 0:00:21.9]}
53. Kg2 {[%clk 0:00:26.8]} 53... Bd8 {[%clk 0:00:23.5]} 54. Kf2 {[%clk
0:00:27.3]} 54... Bg5 {[%clk 0:00:25]} 55. Kg2 {[%clk 0:00:28.1]} 55... Be3
{[%clk 0:00:26.3]} 56. fxg4 {[%clk 0:00:28.6]} 56... hxg4 {[%clk 0:00:26.2]} 57.
Kf1 {[%clk 0:00:29.2]} 57... f4 {[%clk 0:00:23.5]} 58. Kg2 {[%clk 0:00:29.2]}
58... f3+ {[%clk 0:00:20.7]} 59. Kf1 {[%clk 0:00:30.2]} 59... Ka5 {[%clk
0:00:20.6]} 60. Ke1 {[%clk 0:00:31.2]} 60... Bg5 {[%clk 0:00:18.8]} 61. Kf2
{[%clk 0:00:32.2]} 61... Kb6 {[%clk 0:00:18.1]} 62. Bc2 {[%clk 0:00:31.6]} 62...
Kc5 {[%clk 0:00:19.1]} 63. Bb3 {[%clk 0:00:32.9]} 63... Bd8 {[%clk 0:00:19.4]}
64. Ke1 {[%clk 0:00:31.1]} 64... e4 {[%clk 0:00:19.4]} 65. dxe4 {[%clk
0:00:31.1]} 65... d3 {[%clk 0:00:21]} 66. e5 {[%clk 0:00:11.7]} 66... dxe5
{[%clk 0:00:21]} 67. Kf2 {[%clk 0:00:13.6]} 67... e4 {[%clk 0:00:15.9]} 68. Bd1
{[%clk 0:00:14.2]} 68... Bg5 {[%clk 0:00:14.9]} 69. a5 {[%clk 0:00:15.6]} 69...
e3+ {[%clk 0:00:16.1]} 70. Ke1 {[%clk 0:00:17]} 70... e2 {[%clk 0:00:14.4]} 71.
Bxe2 {[%clk 0:00:15.9]} 71... dxe2 {[%clk 0:00:09.8]} 72. a6 {[%clk 0:00:15.7]}
72... Kd4 {[%clk 0:00:10.8]} 73. Kf2 {[%clk 0:00:14.1]} 73... Be3+ {[%clk
0:00:11]} 74. Ke1 {[%clk 0:00:15.4]} 74... Kd3 {[%clk 0:00:12.5]} 75. a7 {[%clk
0:00:16.5]} 75... f2# {[%clk 0:00:14.4]} 0-1

[Event "*** MasterClass Titled Tuesday Blitz"]
[Site "Chess.com"]
[Date "2017.10.03"]
[Round "6"]
[White "Semetey"]
[Black "ChessQueen"]
[Result "0-1"]
[WhiteElo "2439"]
[BlackElo "2588"]
[TimeControl "180+2"]
[EndTime "14:26:55 PDT"]
[Termination "ChessQueen won by resignation"]

1. d4 {[%clk 0:02:55.7]} 1... Nf6 {[%clk 0:03:00.1]} 2. Bf4 {[%clk 0:02:56.5]}
2... b6 {[%clk 0:02:55.1]} 3. Nc3 {[%clk 0:02:56.9]} 3... Bb7 {[%clk 0:02:55.8]}
4. Nf3 {[%clk 0:02:56.4]} 4... e6 {[%clk 0:02:54.2]} 5. a3 {[%clk 0:02:57.1]}
5... c5 {[%clk 0:02:44.2]} 6. e3 {[%clk 0:02:56.5]} 6... Nc6 {[%clk 0:02:37.7]}
7. Nb5 {[%clk 0:02:51.4]} 7... Rc8 {[%clk 0:02:27.2]} 8. Nd6+ {[%clk 0:02:50.9]}
8... Bxd6 {[%clk 0:02:28.2]} 9. Bxd6 {[%clk 0:02:52]} 9... Ne4 {[%clk
0:02:29.2]} 10. dxc5 {[%clk 0:02:52.8]} 10... bxc5 {[%clk 0:02:24.7]} 11. Bf4
{[%clk 0:02:38.1]} 11... Qa5+ {[%clk 0:02:24.9]} 12. c3 {[%clk 0:02:36.3]} 12...
d5 {[%clk 0:02:25.5]} 13. Bd3 {[%clk 0:02:35.6]} 13... O-O {[%clk 0:02:19.9]}
14. O-O {[%clk 0:02:26]} 14... Rfd8 {[%clk 0:02:17]} 15. Qc2 {[%clk 0:02:24.3]}
15... Ne7 {[%clk 0:01:54.4]} 16. Rfd1 {[%clk 0:02:15.1]} 16... Ng6 {[%clk
0:01:49.2]} 17. Bxe4 {[%clk 0:02:04.7]} 17... dxe4 {[%clk 0:01:49.7]} 18. Ne5
{[%clk 0:02:05.9]} 18... Nxf4 {[%clk 0:01:40.2]} 19. exf4 {[%clk 0:02:06.1]}
19... Qc7 {[%clk 0:01:41]} 20. Rxd8+ {[%clk 0:01:58.4]} 20... Rxd8 {[%clk
0:01:41.7]} 21. Rd1 {[%clk 0:01:59.9]} 21... f6 {[%clk 0:01:40.8]} 22. Rxd8+
{[%clk 0:01:50.1]} 22... Qxd8 {[%clk 0:01:41.6]} 23. Nc4 {[%clk 0:01:51.3]}
23... Ba6 {[%clk 0:01:19.3]} 24. Ne3 {[%clk 0:01:52]} 24... Qd6 {[%clk
0:01:19.3]} 25. g3 {[%clk 0:01:52]} 25... Bd3 {[%clk 0:01:03.1]} 26. Qa4 {[%clk
0:01:51.8]} 26... Qe7 {[%clk 0:00:59.4]} 27. Qc6 {[%clk 0:01:48.7]} 27... h5
{[%clk 0:00:57.7]} 28. h4 {[%clk 0:01:49]} 28... Kh7 {[%clk 0:00:57.9]} 29. b4
{[%clk 0:01:47.9]} 29... cxb4 {[%clk 0:00:58.3]} 30. cxb4 {[%clk 0:01:43.2]}
30... a5 {[%clk 0:00:26.9]} 31. Qb6 {[%clk 0:01:34]} 31... axb4 {[%clk
0:00:26.9]} 32. axb4 {[%clk 0:01:35.2]} 32... Qd7 {[%clk 0:00:26.5]} 33. Qc5
{[%clk 0:01:36]} 33... f5 {[%clk 0:00:21.4]} 34. Kg2 {[%clk 0:00:50.7]} 34...
Be2 {[%clk 0:00:22.3]} 35. Qc3 {[%clk 0:00:46.5]} 35... Bf3+ {[%clk 0:00:21.7]}
36. Kh2 {[%clk 0:00:44.2]} 36... Qa4 {[%clk 0:00:21.6]} 37. Qe1 {[%clk
0:00:45.1]} 37... Qb5 {[%clk 0:00:22]} 38. Nc2 {[%clk 0:00:42.3]} 38... e5
{[%clk 0:00:22.8]} 39. fxe5 {[%clk 0:00:40.3]} 39... Qxe5 {[%clk 0:00:23.8]} 40.
Qe3 {[%clk 0:00:41.4]} 40... Qb2 {[%clk 0:00:23.1]} 41. Qd2 {[%clk 0:00:39.6]}
41... Qb1 {[%clk 0:00:15.9]} 42. Ne1 {[%clk 0:00:40.4]} 42... Bg4 {[%clk
0:00:16.6]} 43. Ng2 {[%clk 0:00:40.4]} 43... Qf1 {[%clk 0:00:12]} 44. Qe1 {[%clk
0:00:37.5]} 44... Qb5 {[%clk 0:00:12.7]} 45. Ne3 {[%clk 0:00:30.3]} 45... Bf3
{[%clk 0:00:13.8]} 46. Qb1 {[%clk 0:00:31]} 46... f4 {[%clk 0:00:14.5]} 47. gxf4
{[%clk 0:00:31.9]} 47... Qb8 {[%clk 0:00:15.5]} 48. Kg3 {[%clk 0:00:30.7]} 48...
Qb6 {[%clk 0:00:14.6]} 49. Qb2 {[%clk 0:00:26.4]} 49... Qg6+ {[%clk 0:00:14.7]}
50. Kh2 {[%clk 0:00:27.6]} 50... Qd6 {[%clk 0:00:14]} 51. Kg3 {[%clk 0:00:21.7]}
51... Qg6+ {[%clk 0:00:09.8]} 52. Kh2 {[%clk 0:00:22.7]} 52... Qf7 {[%clk
0:00:09.8]} 53. Qe5 {[%clk 0:00:23.2]} 53... Qa2 {[%clk 0:00:10.1]} 54. Kg3
{[%clk 0:00:20.9]} 54... Qb1 {[%clk 0:00:11.1]} 55. Qf5+ {[%clk 0:00:21.1]}
55... Kh8 {[%clk 0:00:11.9]} 56. Qf8+ {[%clk 0:00:21.8]} 56... Kh7 {[%clk
0:00:12.4]} 57. Qf5+ {[%clk 0:00:22.4]} 57... Kg8 {[%clk 0:00:13.7]} 58. Qc8+
{[%clk 0:00:15.5]} 58... Kf7 {[%clk 0:00:13.4]} 59. Qc4+ {[%clk 0:00:13.2]}
59... Kg6 {[%clk 0:00:09.5]} 60. f5+ {[%clk 0:00:12.7]} 60... Kh7 {[%clk
0:00:10.1]} 61. Nf1 {[%clk 0:00:13.6]} 61... Qb2 {[%clk 0:00:08.1]} 62. Qc5
{[%clk 0:00:11.1]} 62... Qb1 {[%clk 0:00:09.2]} 63. Qc4 {[%clk 0:00:11.8]} 63...
Qa1 {[%clk 0:00:09]} 64. Kf4 {[%clk 0:00:10.8]} 64... Qf6 {[%clk 0:00:09.9]} 65.
Ng3 {[%clk 0:00:08.5]} 65... Qxh4+ {[%clk 0:00:10.9]} 66. Ke3 {[%clk 0:00:09.9]}
66... Qg5+ {[%clk 0:00:12.2]} 67. Kd4 {[%clk 0:00:11.3]} 67... h4 {[%clk
0:00:13.1]} 68. Nxe4 {[%clk 0:00:12.1]} 68... Qf4 {[%clk 0:00:14]} 69. Kd3
{[%clk 0:00:11.6]} 69... Qxf5 {[%clk 0:00:11.4]} 70. b5 {[%clk 0:00:13]} 70...
h3 {[%clk 0:00:11.2]} 71. Ke3 {[%clk 0:00:14.2]} 71... Bxe4 {[%clk 0:00:10.2]}
72. b6 {[%clk 0:00:13.4]} 72... Qf3+ {[%clk 0:00:10.9]} 73. Kd4 {[%clk
0:00:14.5]} 73... h2 {[%clk 0:00:11.8]} 74. b7 {[%clk 0:00:11.4]} 74... Bxb7
{[%clk 0:00:11.9]} 75. Qf7 {[%clk 0:00:11.7]} 75... Qxf7 {[%clk 0:00:11.7]} 0-1

[Event "*** MasterClass Titled Tuesday Blitz"]
[Site "Chess.com"]
[Date "2017.10.03"]
[Round "7"]
[White "maciek_92"]
[Black "MITerryble"]
[Result "0-1"]
[WhiteElo "2533"]
[BlackElo "2634"]
[TimeControl "180+2"]
[EndTime "14:32:56 PDT"]
[Termination "MITerryble won by resignation"]

1. e4 {[%clk 0:03:01.9]} 1... e6 {[%clk 0:03:00]} 2. d4 {[%clk 0:03:00.9]} 2...
d5 {[%clk 0:03:00.9]} 3. Nd2 {[%clk 0:03:02.4]} 3... Be7 {[%clk 0:03:00.2]} 4.
Ngf3 {[%clk 0:02:54.3]} 4... Nf6 {[%clk 0:02:58.5]} 5. Bd3 {[%clk 0:02:48.3]}
5... c5 {[%clk 0:02:58.7]} 6. exd5 {[%clk 0:02:48.2]} 6... Nxd5 {[%clk 0:02:58]}
7. dxc5 {[%clk 0:02:48.5]} 7... Nd7 {[%clk 0:02:58.4]} 8. Nb3 {[%clk 0:02:45.1]}
8... Nxc5 {[%clk 0:02:58.8]} 9. Nxc5 {[%clk 0:02:45.4]} 9... Bxc5 {[%clk
0:03:00.7]} 10. c3 {[%clk 0:02:44.5]} 10... Qc7 {[%clk 0:02:59.1]} 11. O-O
{[%clk 0:02:43.6]} 11... O-O {[%clk 0:03:00.1]} 12. Qc2 {[%clk 0:02:31.2]} 12...
h6 {[%clk 0:03:00.3]} 13. b3 {[%clk 0:02:22.1]} 13... b6 {[%clk 0:03:00.3]} 14.
Bb2 {[%clk 0:02:23.1]} 14... Bb7 {[%clk 0:03:01.3]} 15. Rfe1 {[%clk 0:02:16.3]}
15... Nf4 {[%clk 0:03:00.3]} 16. Be4 {[%clk 0:02:16.7]} 16... Rac8 {[%clk
0:03:00.2]} 17. c4 {[%clk 0:02:10.5]} 17... Bxe4 {[%clk 0:02:53.2]} 18. Rxe4
{[%clk 0:02:08]} 18... Ng6 {[%clk 0:02:51.6]} 19. Rg4 {[%clk 0:02:02.4]} 19...
Bd6 {[%clk 0:02:43]} 20. Re1 {[%clk 0:01:57.3]} 20... Bb4 {[%clk 0:02:23.4]} 21.
Rxe6 {[%clk 0:01:54.2]} 21... fxe6 {[%clk 0:02:19.8]} 22. Qxg6 {[%clk
0:01:54.2]} 22... Rf7 {[%clk 0:02:21.3]} 23. Qxh6 {[%clk 0:01:46.1]} 23... Rd8
{[%clk 0:02:16.1]} 24. Bd4 {[%clk 0:01:22.3]} 24... e5 {[%clk 0:02:13.6]} 25.
Ng5 {[%clk 0:01:21.3]} 25... gxh6 {[%clk 0:02:13]} 26. Ne6+ {[%clk 0:01:20.5]}
26... Kh7 {[%clk 0:02:08.9]} 0-1

[Event "*** MasterClass Titled Tuesday Blitz"]
[Site "Chess.com"]
[Date "2017.10.03"]
[Round "7"]
[White "Hrant_ChessMood"]
[Black "Hanging_pointer"]
[Result "1-0"]
[WhiteElo "2742"]
[BlackElo "2359"]
[TimeControl "180+2"]
[EndTime "14:33:31 PDT"]
[Termination "Hrant_ChessMood won by checkmate"]

1. d4 {[%clk 0:03:01.9]} 1... Nf6 {[%clk 0:03:00.7]} 2. Nf3 {[%clk 0:03:02.7]}
2... d5 {[%clk 0:03:01.4]} 3. c4 {[%clk 0:03:03.2]} 3... e6 {[%clk 0:03:01.2]}
4. Nc3 {[%clk 0:03:03.9]} 4... dxc4 {[%clk 0:03:02]} 5. e4 {[%clk 0:03:03.4]}
5... Bb4 {[%clk 0:03:02.7]} 6. Bxc4 {[%clk 0:03:04.4]} 6... Nxe4 {[%clk
0:03:01.9]} 7. O-O {[%clk 0:03:05.8]} 7... Bxc3 {[%clk 0:02:36.7]} 8. bxc3
{[%clk 0:03:07.7]} 8... Nf6 {[%clk 0:02:34.3]} 9. Ba3 {[%clk 0:03:04.5]} 9...
Bd7 {[%clk 0:02:11.1]} 10. Re1 {[%clk 0:03:02.2]} 10... Bc6 {[%clk 0:02:09.5]}
11. Ne5 {[%clk 0:03:01.1]} 11... Bd5 {[%clk 0:02:07.8]} 12. Bf1 {[%clk
0:02:55.3]} 12... Nbd7 {[%clk 0:01:56]} 13. c4 {[%clk 0:02:53.2]} 13... Be4
{[%clk 0:01:57.3]} 14. Qb3 {[%clk 0:02:41.4]} 14... b6 {[%clk 0:01:00.8]} 15.
Rad1 {[%clk 0:02:40.3]} 15... Rb8 {[%clk 0:00:35.3]} 16. Qg3 {[%clk 0:02:39.7]}
16... Nh5 {[%clk 0:00:06.8]} 17. Qh3 {[%clk 0:02:23]} 17... Bg6 {[%clk
0:00:05.2]} 18. Nc6 {[%clk 0:02:18.3]} 18... Qc8 {[%clk 0:00:04.2]} 19. Rxe6+
{[%clk 0:02:15.8]} 19... fxe6 {[%clk 0:00:02.2]} 20. Qxe6# {[%clk 0:02:17.7]}
1-0

[Event "*** MasterClass Titled Tuesday Blitz"]
[Site "Chess.com"]
[Date "2017.10.03"]
[Round "7"]
[White "guilhermedeola"]
[Black "evgenysharapov"]
[Result "0-1"]
[WhiteElo "2060"]
[BlackElo "2263"]
[TimeControl "180+2"]
[EndTime "14:34:13 PDT"]
[Termination "evgenysharapov won by resignation"]

1. d4 {[%clk 0:02:58.6]} 1... d5 {[%clk 0:03:00.5]} 2. c4 {[%clk 0:02:59.6]}
2... c6 {[%clk 0:03:01.3]} 3. Nf3 {[%clk 0:02:58.6]} 3... Nf6 {[%clk 0:03:01.7]}
4. Nc3 {[%clk 0:02:55]} 4... e6 {[%clk 0:03:02.2]} 5. e3 {[%clk 0:02:55.7]} 5...
Nbd7 {[%clk 0:03:02.2]} 6. Qc2 {[%clk 0:02:56.2]} 6... Bd6 {[%clk 0:03:01.1]} 7.
Bd3 {[%clk 0:02:57]} 7... O-O {[%clk 0:03:00.6]} 8. O-O {[%clk 0:02:57.6]} 8...
e5 {[%clk 0:03:01.2]} 9. cxd5 {[%clk 0:02:43.4]} 9... cxd5 {[%clk 0:03:01.7]}
10. Nb5 {[%clk 0:02:43.9]} 10... Bb8 {[%clk 0:03:00.9]} 11. dxe5 {[%clk
0:02:44.3]} 11... Nxe5 {[%clk 0:03:01.3]} 12. Nxe5 {[%clk 0:02:44]} 12... Bxe5
{[%clk 0:03:01.6]} 13. Nd4 {[%clk 0:02:26.7]} 13... Be6 {[%clk 0:02:50.6]} 14.
b3 {[%clk 0:02:25.8]} 14... Qd6 {[%clk 0:02:44.7]} 15. h3 {[%clk 0:02:22.9]}
15... Rac8 {[%clk 0:02:41.3]} 16. Qd2 {[%clk 0:02:23.5]} 16... Bxd4 {[%clk
0:02:18.7]} 17. exd4 {[%clk 0:02:22.7]} 17... Ne4 {[%clk 0:02:19.5]} 18. Qb2
{[%clk 0:02:11.8]} 18... Bf5 {[%clk 0:02:13.5]} 19. Bxe4 {[%clk 0:01:53.4]}
19... Bxe4 {[%clk 0:02:13.7]} 20. Be3 {[%clk 0:01:42.5]} 20... Rc2 {[%clk
0:02:10.2]} 21. Qb1 {[%clk 0:01:34.5]} 21... Qg6 {[%clk 0:01:59.9]} 22. g3
{[%clk 0:01:31]} 22... Rxf2 {[%clk 0:01:54.2]} 23. Bxf2 {[%clk 0:01:31.7]} 23...
Bxb1 {[%clk 0:01:54.1]} 24. Raxb1 {[%clk 0:01:32.1]} 24... Re8 {[%clk
0:01:50.7]} 25. Rbc1 {[%clk 0:01:31.7]} 25... h5 {[%clk 0:01:45.3]} 26. Rc5
{[%clk 0:01:28.9]} 26... h4 {[%clk 0:01:33.3]} 27. g4 {[%clk 0:01:24.2]} 27...
Qd3 {[%clk 0:01:32.1]} 28. Kg2 {[%clk 0:01:22.4]} 28... Re2 {[%clk 0:01:30.5]}
29. Rxd5 {[%clk 0:01:20.9]} 29... Qg3+ {[%clk 0:01:28.4]} 0-1

[Event "*** MasterClass Titled Tuesday Blitz"]
[Site "Chess.com"]
[Date "2017.10.03"]
[Round "7"]
[White "joppie2"]
[Black "VladDobrov"]
[Result "1-0"]
[WhiteElo "2593"]
[BlackElo "2615"]
[TimeControl "180+2"]
[EndTime "14:34:17 PDT"]
[Termination "joppie2 won by resignation"]

1. e4 {[%clk 0:03:01.9]} 1... c5 {[%clk 0:03:01.1]} 2. Nf3 {[%clk 0:03:01.9]}
2... d6 {[%clk 0:03:02.7]} 3. d4 {[%clk 0:03:00.1]} 3... cxd4 {[%clk 0:03:04.6]}
4. Nxd4 {[%clk 0:02:57.2]} 4... Nf6 {[%clk 0:03:05.7]} 5. Nc3 {[%clk 0:02:58.8]}
5... a6 {[%clk 0:03:06.8]} 6. Bc4 {[%clk 0:02:58.5]} 6... e6 {[%clk 0:03:07.5]}
7. Bb3 {[%clk 0:02:57.8]} 7... Nbd7 {[%clk 0:03:08.7]} 8. f4 {[%clk 0:02:56.9]}
8... Nc5 {[%clk 0:03:09.7]} 9. e5 {[%clk 0:02:58.4]} 9... Nfd7 {[%clk
0:03:06.7]} 10. Be3 {[%clk 0:02:59.9]} 10... b5 {[%clk 0:03:01.1]} 11. exd6
{[%clk 0:02:52.9]} 11... Bb7 {[%clk 0:03:02.2]} 12. O-O {[%clk 0:02:51.4]} 12...
b4 {[%clk 0:02:35.7]} 13. f5 {[%clk 0:02:49.4]} 13... bxc3 {[%clk 0:01:12.6]}
14. fxe6 {[%clk 0:02:48.8]} 14... fxe6 {[%clk 0:01:09.6]} 15. Nxe6 {[%clk
0:02:49.1]} 15... Nxe6 {[%clk 0:01:05]} 16. Bxe6 {[%clk 0:02:44.6]} 16... Qh4
{[%clk 0:01:05.6]} 17. Bxd7+ {[%clk 0:02:39.5]} 17... Kxd7 {[%clk 0:00:46.6]}
18. Rf7+ {[%clk 0:02:39.4]} 18... Ke6 {[%clk 0:00:46.3]} 19. Rxb7 {[%clk
0:02:38.4]} 19... Qe4 {[%clk 0:00:47.2]} 20. Bc5 {[%clk 0:02:25.1]} 20... Rc8
{[%clk 0:00:33.8]} 21. Qe1 {[%clk 0:02:18.8]} 21... Qxe1+ {[%clk 0:00:23.2]} 22.
Rxe1+ {[%clk 0:02:20.7]} 22... Kd5 {[%clk 0:00:23.8]} 23. b4 {[%clk 0:02:22.3]}
23... Rd8 {[%clk 0:00:18.9]} 24. Rd1+ {[%clk 0:02:19.8]} 24... Ke6 {[%clk
0:00:16.7]} 25. d7 {[%clk 0:02:21.2]} 25... a5 {[%clk 0:00:13.9]} 26. Bxf8
{[%clk 0:02:20.5]} 26... Rhxf8 {[%clk 0:00:13.7]} 27. bxa5 {[%clk 0:02:22.1]}
27... Rf4 {[%clk 0:00:13]} 28. a6 {[%clk 0:02:22.5]} 28... Ra4 {[%clk
0:00:14.5]} 29. a7 {[%clk 0:02:23.4]} 29... Ke7 {[%clk 0:00:07]} 30. Re1+ {[%clk
0:02:22.2]} 30... Kd6 {[%clk 0:00:07.5]} 31. Re8 {[%clk 0:02:22.9]} 1-0

[Event "*** MasterClass Titled Tuesday Blitz"]
[Site "Chess.com"]
[Date "2017.10.03"]
[Round "7"]
[White "ka1ser64"]
[Black "manubibi"]
[Result "1-0"]
[WhiteElo "2327"]
[BlackElo "2339"]
[TimeControl "180+2"]
[EndTime "14:34:30 PDT"]
[Termination "ka1ser64 won by resignation"]

1. d4 {[%clk 0:03:01.9]} 1... Nf6 {[%clk 0:02:56.6]} 2. c4 {[%clk 0:03:02.7]}
2... g6 {[%clk 0:02:56.3]} 3. Nc3 {[%clk 0:03:03.9]} 3... Bg7 {[%clk 0:02:57.4]}
4. e4 {[%clk 0:03:04.9]} 4... d6 {[%clk 0:02:58.6]} 5. Nf3 {[%clk 0:03:06]} 5...
O-O {[%clk 0:02:59.8]} 6. Be2 {[%clk 0:03:07.5]} 6... e5 {[%clk 0:03:00.6]} 7.
O-O {[%clk 0:03:09.1]} 7... exd4 {[%clk 0:03:02.5]} 8. Nxd4 {[%clk 0:03:10.1]}
8... Re8 {[%clk 0:03:04.4]} 9. f3 {[%clk 0:03:11.5]} 9... Nc6 {[%clk 0:03:05.9]}
10. Nc2 {[%clk 0:03:12.6]} 10... a5 {[%clk 0:03:05.7]} 11. Bg5 {[%clk
0:03:10.8]} 11... h6 {[%clk 0:03:05.8]} 12. Be3 {[%clk 0:03:08.9]} 12... Nb4
{[%clk 0:03:05.4]} 13. Nd4 {[%clk 0:03:04.4]} 13... c6 {[%clk 0:03:04.1]} 14.
Qd2 {[%clk 0:03:04.8]} 14... Kh7 {[%clk 0:03:01.3]} 15. Rad1 {[%clk 0:03:01.9]}
15... d5 {[%clk 0:03:01.7]} 16. cxd5 {[%clk 0:03:01.8]} 16... cxd5 {[%clk
0:03:02.8]} 17. Bb5 {[%clk 0:03:02.9]} 17... Bd7 {[%clk 0:03:03]} 18. a3 {[%clk
0:03:03.8]} 18... Nc6 {[%clk 0:03:02.4]} 19. exd5 {[%clk 0:03:03.7]} 19... Nxd4
{[%clk 0:02:52.6]} 20. Bxd4 {[%clk 0:02:51.8]} 20... Bxb5 {[%clk 0:02:53.4]} 21.
Nxb5 {[%clk 0:02:52.7]} 21... Qxd5 {[%clk 0:02:54]} 22. Nc7 {[%clk 0:02:47]}
22... Qb3 {[%clk 0:02:48.1]} 23. Nxa8 {[%clk 0:02:42.6]} 23... Rxa8 {[%clk
0:02:48.5]} 24. Qc3 {[%clk 0:02:37.9]} 24... Qxc3 {[%clk 0:02:46.1]} 25. Bxc3
{[%clk 0:02:38.6]} 25... b5 {[%clk 0:02:48]} 26. Rfe1 {[%clk 0:02:28.9]} 26...
Kg8 {[%clk 0:02:47.7]} 27. Re7 {[%clk 0:02:25.3]} 27... b4 {[%clk 0:02:44]} 28.
axb4 {[%clk 0:02:24.6]} 28... axb4 {[%clk 0:02:45.9]} 29. Bxb4 {[%clk 0:02:22]}
29... Bf8 {[%clk 0:02:47.3]} 30. Rb7 {[%clk 0:02:22.8]} 30... Bxb4 {[%clk
0:02:46.5]} 31. Rxb4 {[%clk 0:02:23.7]} 31... Rc8 {[%clk 0:02:46.5]} 32. Rd2
{[%clk 0:02:23.1]} 32... h5 {[%clk 0:02:43.5]} 33. Rbd4 {[%clk 0:02:04.9]} 33...
Rc1+ {[%clk 0:02:42.7]} 34. Kf2 {[%clk 0:02:05.2]} 34... Kg7 {[%clk 0:02:43.2]}
35. Rd1 {[%clk 0:02:01.3]} 35... Rc2+ {[%clk 0:02:43.6]} 36. R4d2 {[%clk
0:02:02.4]} 36... Rc4 {[%clk 0:02:44.9]} 37. Rb1 {[%clk 0:02:00.4]} 37... Rb4
{[%clk 0:02:44.5]} 38. Ke3 {[%clk 0:01:58.5]} 38... g5 {[%clk 0:02:44.4]} 39. b3
{[%clk 0:01:58.7]} 39... Kg6 {[%clk 0:02:44.4]} 40. Rd4 {[%clk 0:01:59.8]} 40...
Rb5 {[%clk 0:02:44]} 41. Kd3 {[%clk 0:01:57.5]} 41... h4 {[%clk 0:02:42.2]} 42.
Kc4 {[%clk 0:01:57.3]} 42... Re5 {[%clk 0:02:41.8]} 43. b4 {[%clk 0:01:49.2]}
43... Re2 {[%clk 0:02:42.2]} 44. b5 {[%clk 0:01:49.5]} 44... Rxg2 {[%clk
0:02:40.3]} 45. b6 {[%clk 0:01:50.7]} 45... Rc2+ {[%clk 0:02:41.2]} 46. Kd3
{[%clk 0:01:49.2]} 46... Rc8 {[%clk 0:02:42.3]} 47. b7 {[%clk 0:01:49.6]} 47...
Rb8 {[%clk 0:02:43.8]} 48. Rc4 {[%clk 0:01:48.4]} 48... Nd7 {[%clk 0:02:39.5]}
49. Rc8 {[%clk 0:01:47.4]} 49... Kf5 {[%clk 0:02:25.9]} 50. Rxb8 {[%clk
0:01:47.6]} 50... Nxb8 {[%clk 0:02:27.8]} 51. Rc1 {[%clk 0:01:43.6]} 51... Kf4
{[%clk 0:02:26.8]} 52. Ke2 {[%clk 0:01:44.3]} 52... f5 {[%clk 0:02:25.6]} 53.
Rc4+ {[%clk 0:01:43]} 53... Ke5 {[%clk 0:02:25.9]} 54. Rc8 {[%clk 0:01:44.5]}
54... Na6 {[%clk 0:02:26.2]} 55. b8=Q+ {[%clk 0:01:41.4]} 55... Nxb8 {[%clk
0:02:26.8]} 56. Rxb8 {[%clk 0:01:43.3]} 56... g4 {[%clk 0:02:27.5]} 57. fxg4
{[%clk 0:01:36.6]} 57... fxg4 {[%clk 0:02:29.4]} 58. Rh8 {[%clk 0:01:34.6]}
58... Kf4 {[%clk 0:02:31.3]} 59. Rxh4 {[%clk 0:01:34.8]} 1-0